bitfinex/quotes_ETHUSD_20241004
["timestamp","ask_amount","ask_price","bid_price","bid_amount"]
[1728045538483,4.18497,2389.6,2388.7,0.7793]
[1728045538484,4.18458,2389.8,2389.3,0.7904]
[1728045538671,4.18428,2389.9,2389.4,4.18506]
[1728045539082,4.18428,2389.9,2389.5,0.07014929]
[1728045539992,4.18423,2390.0,2389.5,4.25510929]
[1728045540303,4.18411,2390.0,2389.5,4.25510929]
[1728045540456,4.18407,2390.1,2389.6,4.18479]
[1728045540658,4.18387,2390.2,2389.7,4.18446]
[1728045540898,4.18387,2390.2,2389.7,4.25436006]
[1728045541104,4.18405,2390.1,2389.7,0.06990006]
[1728045541260,4.18387,2390.2,2389.7,0.06990006]
[1728045541261,4.18383,2390.2,2389.7,4.1846]
[1728045541459,0.7933,2390.5,2389.8,0.06977547]
[1728045541460,4.18399,2390.1,2389.8,0.06977547]
[1728045541756,4.18383,2390.2,2389.7,4.18454]
[1728045541914,8.36795,2390.1,2389.9,0.06965088]
[1728045542063,4.1843,2389.9,2389.4,8.37008]
[1728045542488,4.1843,2389.9,2389.4,8.37005]
[1728045542679,4.1841,2390.0,2389.4,4.18502]
[1728045542876,0.7933,2390.5,2390.1,4.18381]
[1728045543163,4.18287,2390.7,2390.1,4.18381]
[1728045543362,4.18287,2390.7,2389.8,0.7958]
[1728045543363,0.7504,2390.8,2389.9,4.18416]
[1728045543578,4.18331,2390.5,2390.0,4.184]
[1728045543766,9.11609,2390.8,2390.2,4.18362]
[1728045543982,9.11609,2390.8,2390.1,4.18381]
[1728045543983,4.9332,2390.8,2390.3,4.18356]
[1728045544213,4.9332,2390.8,2390.1,4.18381]
[1728045544214,4.18301,2390.7,2390.1,4.18381]
[1728045544503,4.18301,2390.7,2390.2,4.1837]
[1728045544868,8.36603,2390.7,2390.2,4.1837]
[1728045545086,4.18306,2390.6,2390.1,4.18381]
[1728045545667,4.18323,2390.5,2390.1,4.18381]
[1728045545910,4.18323,2390.5,2389.9,4.18413]
[1728045546278,4.18299,2390.7,2390.1,4.18379]
[1728045546712,4.18299,2390.7,2390.3,4.18356]
[1728045546917,7.9331,2390.8,2390.3,8.36704]
[1728045547087,4.9331,2390.8,2390.3,4.18348]
[1728045547613,4.18305,2390.6,2390.1,4.1838]
[1728045548307,4.9331,2390.8,2390.2,4.18357]
[1728045548485,4.18306,2390.6,2390.1,4.1839]
[1728045548803,4.18318,2390.6,2390.0,4.18397]
[1728045549105,8.36632,2390.6,2390.1,4.18383]
[1728045549310,0.65587104,2390.5,2390.0,4.18397]
[1728045549514,4.18342,2390.4,2389.9,4.18426]
[1728045550083,4.18402,2390.1,2389.7,3.0]
[1728045550383,4.18376,2390.2,2389.7,7.18454]
[1728045550907,0.65587104,2390.5,2390.0,4.18398]
[1728045551114,0.65587104,2390.5,2390.1,4.18389]
[1728045551415,0.65587104,2390.5,2390.1,4.98259]
[1728045551572,8.36691,2390.4,2390.1,0.7987]
[1728045551773,4.1834,2390.4,2390.0,4.18409]
[1728045551969,4.83909104,2390.5,2389.9,4.18415]
[1728045552173,4.83909104,2390.5,2389.8,0.7575]
[1728045552174,4.18371,2390.3,2389.8,4.94185]
[1728045552589,4.1835,2390.4,2389.9,0.06941032]
[1728045553050,8.36706,2390.4,2389.9,0.06941032]
[1728045553192,8.36706,2390.4,2390.0,4.18406]
[1728045553193,4.1835,2390.4,2390.0,4.18406]
[1728045553392,4.18383,2390.2,2389.9,0.06941032]
[1728045553636,4.18354,2390.4,2390.1,0.06916117]
[1728045553823,4.18354,2390.4,2390.0,0.06928574]
[1728045554022,4.18371,2390.3,2390.2,0.06903662]
[1728045554205,0.65587104,2390.5,2390.1,0.06916117]
[1728045554533,0.65587104,2390.5,2390.2,0.06903662]
[1728045554693,0.65587104,2390.5,2390.1,4.18379]
[1728045554900,0.65587104,2390.5,2390.1,4.18389]
[1728045555098,0.65587104,2390.5,2390.2,0.06894428]
[1728045555303,0.65587104,2390.5,2390.2,4.18363]
[1728045555505,0.7504,2390.8,2390.3,4.25223974]
[1728045555733,4.18271,2390.8,2390.3,4.25223974]
[1728045556136,0.65581086,2390.9,2390.3,4.25223974]
[1728045556291,4.83842086,2390.9,2390.3,4.25223974]
[1728045556495,4.18279,2390.8,2390.3,4.25223974]
[1728045556706,4.18306,2390.6,2390.3,0.06881974]
[1728045556992,4.18394,2390.1,2389.8,0.7575]
[1728045557196,4.18419,2390.0,2389.5,4.18488]
[1728045557438,4.18394,2390.1,2389.6,4.1848]
[1728045557623,4.85465411,2390.6,2389.4,0.8212]
[1728045557820,4.18401,2390.1,2389.6,4.18478]
[1728045558197,4.18387,2390.2,2389.5,4.18481]
[1728045558395,4.18352,2390.4,2389.4,0.8212]
[1728045558648,4.1835,2390.4,2389.9,4.18424]
[1728045558796,4.18322,2390.5,2390.0,4.20729957]
[1728045559135,4.18332,2390.5,2390.0,0.02329957]
[1728045559331,4.18349,2390.4,2389.9,4.18417]
[1728045559508,4.1836,2390.3,2389.4,0.8212]
[1728045559708,4.1836,2390.3,2389.7,4.18452]
[1728045559919,4.18385,2390.2,2389.7,4.18452]
[1728045560547,4.94791,2390.7,2389.7,4.18452]
[1728045560548,4.18334,2390.5,2389.9,4.1841]
[1728045560751,4.18359,2390.3,2389.8,4.94677]
[1728045560953,4.18359,2390.3,2389.9,4.18424]
[1728045561110,0.765,2390.7,2389.8,0.7624]
[1728045561111,4.18385,2390.2,2389.8,0.7624]
[1728045561620,4.18336,2390.5,2390.0,4.18408]
[1728045561949,4.94799,2390.7,2390.2,4.18374]
[1728045561950,4.18306,2390.6,2390.2,4.18374]
[1728045562132,4.18272,2390.8,2390.3,4.1834]
[1728045562446,4.18288,2390.7,2390.1,4.1838]
[1728045562643,4.18317,2390.6,2390.1,4.1838]
[1728045562848,4.18317,2390.6,2390.1,4.18391]
[1728045562849,4.18313,2390.6,2390.1,4.18391]
[1728045563010,4.18313,2390.6,2390.0,4.18398]
[1728045563436,4.18313,2390.6,2389.8,0.7624]
[1728045563437,4.18349,2390.4,2389.9,4.18416]
[1728045563637,4.18305,2390.6,2390.1,4.18381]
[1728045563958,4.18301,2390.7,2390.1,4.18381]
[1728045564301,4.18278,2390.8,2390.3,4.18347]
[1728045564610,4.83844086,2390.9,2390.4,4.18327]
[1728045564958,4.18298,2390.7,2390.2,4.18362]
[1728045565244,4.18327,2390.5,2390.1,0.7632]
[1728045565430,4.18291,2390.7,2390.1,4.94701]
[1728045565631,4.18319,2390.6,2390.1,4.94701]
[1728045566053,4.18326,2390.5,2390.1,0.7632]
[1728045566237,4.18401,2390.1,2389.8,0.7963]
[1728045566548,4.18445,2389.8,2389.2,5.01074]
[1728045566847,4.18481,2389.6,2389.2,0.8254]
[1728045567208,8.36975,2389.6,2389.2,0.8254]
[1728045567416,4.18528,2389.4,2388.8,8.37218]
[1728045567616,4.18515,2389.4,2389.3,0.07006567]
[1728045567915,4.18515,2389.4,2388.1,0.87437866]
[1728045567916,1.3192,2389.1,2388.3,4.97703]
[1728045568112,4.18613,2388.9,2388.3,4.97703]
[1728045568418,4.18647,2388.7,2388.3,0.7901]
[1728045568864,8.37294,2388.7,2388.3,0.7901]
[1728045569148,4.18647,2388.7,2388.3,0.7901]
[1728045569364,4.18696,2388.4,2387.9,5.00018]
[1728045569529,8.37398,2388.4,2387.9,0.8125]
[1728045569859,4.18663,2388.6,2387.9,5.00026]
[1728045570164,4.18695,2388.4,2387.9,5.00026]
[1728045570366,8.37334,2388.6,2387.9,9.18793]
[1728045570513,8.37329,2388.6,2387.9,5.00017]
[1728045570708,5.50495,2389.1,2387.9,5.00017]
[1728045570709,4.18628,2388.8,2387.9,5.00017]
[1728045570964,1.3192,2389.1,2388.1,4.18731]
[1728045571256,4.1862,2388.8,2388.2,4.18724]
[1728045571419,4.1862,2388.8,2388.1,4.18731]
[1728045571620,4.1862,2388.8,2388.3,4.18707]
[1728045572351,0.7692,2389.1,2388.2,0.8149]
[1728045572552,4.18563,2389.2,2388.5,4.18659]
[1728045572782,4.18576,2389.1,2388.5,4.18659]
[1728045573090,4.94406,2389.4,2388.7,4.18625]
[1728045573298,0.8303,2389.7,2389.1,4.18565]
[1728045573595,4.18455,2389.8,2389.3,4.18528]
[1728045573754,8.36912,2389.8,2389.3,4.18528]
[1728045573952,4.18455,2389.8,2389.3,4.18528]
[1728045574194,4.18387,2390.2,2389.6,4.18478]
[1728045574454,4.18385,2390.2,2389.7,0.05522708]
[1728045574696,4.18385,2390.2,2389.7,4.23982708]
[1728045575207,4.18385,2390.2,2389.8,4.18443]
[1728045575359,4.18385,2390.2,2389.9,0.05522246]
[1728045575722,4.18384,2390.2,2389.7,7.23974246]
[1728045576392,4.18358,2390.3,2389.8,4.18441]
[1728045576593,4.18358,2390.3,2389.9,0.05522245]
[1728045576761,4.18387,2390.2,2389.6,3.0]
[1728045576971,4.18387,2390.2,2389.7,3.0]
[1728045577206,4.18419,2390.0,2389.5,7.96907]
[1728045577997,4.18378,2390.2,2389.6,4.18478]
[1728045578296,4.18398,2390.1,2389.6,4.18478]
[1728045579092,4.18359,2390.3,2389.5,0.7841]
[1728045579256,4.18359,2390.3,2389.8,4.18434]
[1728045579459,4.83951804,2390.4,2389.8,4.18433]
[1728045579683,9.02303804,2390.4,2389.9,4.18425]
[1728045579889,4.18357,2390.3,2389.8,4.18433]
[1728045580480,4.83946804,2390.4,2389.8,4.18433]
[1728045580805,0.65594804,2390.4,2390.0,0.7954]
[1728045580956,4.183,2390.7,2390.2,4.18372]
[1728045581157,0.65585706,2390.8,2390.3,4.18356]
[1728045581503,0.65585706,2390.8,2390.4,4.18329]
[1728045581805,0.65585706,2390.8,2390.4,4.18336]
[1728045582103,4.83858706,2390.8,2390.3,4.18348]
[1728045582310,4.1829,2390.7,2390.3,4.18348]
[1728045582465,4.1829,2390.7,2390.1,8.36763]
[1728045582466,8.36592,2390.7,2390.1,8.36763]
[1728045582794,0.65585706,2390.8,2390.1,8.36763]
[1728045582795,0.8084,2390.6,2390.1,3.0]
[1728045582997,4.18352,2390.4,2390.2,0.06442988]
[1728045583197,4.18357,2390.3,2389.8,3.0]
[1728045583517,4.18381,2390.2,2389.8,3.0]
[1728045583793,0.8084,2390.6,2389.9,4.18426]
[1728045583794,4.18332,2390.5,2389.9,4.18426]
[1728045583992,4.18332,2390.5,2390.0,4.97329]
[1728045584193,8.36665,2390.5,2390.0,0.7892]
[1728045584491,4.18308,2390.6,2390.1,4.1838]
[1728045584698,4.18308,2390.6,2390.0,4.97321]
[1728045584699,4.18328,2390.5,2390.0,4.97321]
[1728045585763,8.36627,2390.6,2390.1,4.18386]
[1728045585965,4.18323,2390.5,2390.0,4.97328]
[1728045586295,4.18323,2390.5,2390.0,9.15728]
[1728045586493,4.18308,2390.6,2390.0,4.9732]
[1728045586661,4.18308,2390.6,2390.2,4.18374]
[1728045586857,4.18308,2390.6,2390.0,4.9732]
[1728045587086,4.18308,2390.6,2390.1,4.18383]
[1728045587307,4.18287,2390.7,2390.2,4.18366]
[1728045587465,4.83865706,2390.8,2390.2,4.18366]
[1728045587805,4.18331,2390.5,2390.0,4.97318]
[1728045588009,8.36636,2390.6,2390.0,9.15718]
[1728045588196,4.18288,2390.7,2390.2,4.18362]
[1728045588402,4.83865706,2390.8,2390.2,4.18362]
[1728045588560,4.83865706,2390.8,2390.3,4.18345]
[1728045589079,4.83865706,2390.8,2390.2,4.18362]
[1728045589487,4.18307,2390.6,2390.2,4.18362]
[1728045590500,4.18307,2390.6,2390.1,4.18391]
[1728045591005,4.18307,2390.6,2390.2,4.18371]
[1728045591206,4.83865706,2390.8,2390.1,8.36774]
[1728045591207,4.18304,2390.7,2390.1,8.36774]
[1728045591388,4.83865706,2390.8,2390.1,4.18383]
[1728045591594,4.18325,2390.5,2390.0,7.97324]
[1728045591913,4.18349,2390.4,2389.8,4.18443]
[1728045592703,4.1841,2390.0,2389.7,0.7577]
[1728045592916,4.1841,2390.0,2389.6,3.0]
[1728045593076,0.8286,2390.5,2389.9,4.18412]
[1728045593280,5.01185,2390.5,2389.9,4.18412]
[1728045593485,0.8286,2390.5,2390.1,4.18391]
[1728045593669,4.18287,2390.7,2390.2,4.18361]
[1728045594542,0.65585706,2390.8,2390.3,4.18342]
[1728045594707,0.65585706,2390.8,2390.4,4.18337]
[1728045594916,4.83855706,2390.8,2390.4,4.18337]
[1728045595367,4.83855706,2390.8,2390.3,4.18357]
[1728045595564,4.83855706,2390.8,2390.1,4.18377]
[1728045595768,4.83855706,2390.8,2390.0,3.7957]
[1728045595769,4.18298,2390.7,2390.2,4.18372]
[1728045595991,4.18298,2390.7,2390.2,8.36739]
[1728045596207,4.18298,2390.7,2390.2,4.18367]
[1728045596791,0.65585706,2390.8,2390.3,4.18354]
[1728045597616,0.65585706,2390.8,2390.4,0.06392086]
[1728045598108,4.18297,2390.7,2390.4,0.06392086]
[1728045598335,4.18297,2390.7,2390.2,8.36731]
[1728045598539,4.83868706,2390.8,2390.5,0.06379633]
[1728045598697,4.83868706,2390.8,2390.3,4.18347]
[1728045598895,4.83868706,2390.8,2390.4,0.06392086]
[1728045599728,4.18308,2390.6,2390.4,0.06392086]
[1728045599930,5.62307706,2390.8,2390.1,4.18387]
[1728045600144,5.62304706,2390.8,2390.5,0.06379146]
[1728045600344,1.44025706,2390.8,2390.3,4.18345]
[1728045600501,0.65585706,2390.8,2390.6,0.06366695]
[1728045600701,0.65585706,2390.8,2390.5,4.18306]
[1728045600933,0.65585706,2390.8,2390.7,4.18287]
[1728045601254,5.64760132,2391.5,2390.9,4.18252]
[1728045601535,9.82918132,2391.5,2391.0,0.063084]
[1728045601744,4.18179,2391.4,2391.0,0.063084]
[1728045601901,4.182,2391.2,2390.7,8.36553]
[1728045602099,4.182,2391.2,2390.5,3.7637]
[1728045602457,4.18246,2391.0,2390.6,3.0]
[1728045602618,4.18246,2391.0,2390.5,4.94681]
[1728045602945,4.18246,2391.0,2390.3,4.18348]
[1728045602946,4.1827,2390.8,2390.6,0.06345088]
[1728045603110,4.18287,2390.7,2390.4,3.0]
[1728045603297,4.94462,2390.9,2390.5,0.06360937]
[1728045603495,4.18271,2390.8,2390.5,0.06360937]
[1728045604251,4.18289,2390.7,2390.5,0.06360937]
[1728045604398,4.18305,2390.6,2390.5,0.06360937]
[1728045604604,5.0124,2390.3,2389.7,4.1845]
[1728045605048,4.18418,2390.0,2389.8,0.06451039]
[1728045605351,4.18418,2390.0,2388.8,4.85465411]
[1728045605352,4.18427,2389.9,2389.2,0.829]
[1728045605520,4.18521,2389.4,2388.9,4.93659]
[1728045605928,9.18311,2389.6,2388.9,9.12247]
[1728045606129,4.18507,2389.5,2388.9,4.93658]
[1728045606343,4.18517,2389.4,2388.9,0.7507]
[1728045606544,4.18517,2389.4,2388.9,4.93662]
[1728045606752,9.18313,2389.6,2388.9,9.12253]
[1728045606958,0.8133,2389.6,2389.1,4.18566]
[1728045607175,4.73463,2389.7,2388.6,0.7608]
[1728045607483,4.18559,2389.2,2388.6,0.7608]
[1728045607618,4.96859,2389.2,2388.6,0.7608]
[1728045607818,4.96859,2389.2,2388.3,0.82]
[1728045607819,4.1863,2388.8,2388.3,0.82]
[1728045608262,4.18575,2389.1,2388.3,0.82]
[1728045608417,4.18575,2389.1,2388.4,4.1868]
[1728045608619,4.18552,2389.2,2388.7,4.18636]
[1728045608860,4.18549,2389.3,2388.7,4.18636]
[1728045609260,4.18549,2389.3,2388.8,4.1862]
[1728045609467,9.14281,2389.5,2388.9,4.96162]
[1728045609647,0.7727,2389.5,2389.0,4.18584]
[1728045609962,4.18474,2389.7,2389.0,4.18584]
[1728045610256,4.18526,2389.4,2388.9,3.7756]
[1728045610622,4.18541,2389.3,2388.9,3.7756]
[1728045610857,8.3702,2389.5,2388.9,3.7756]
[1728045611168,4.18521,2389.4,2388.9,7.96162]
[1728045612075,4.95717,2389.8,2389.2,4.18539]
[1728045612076,4.18473,2389.7,2389.2,4.18539]
[1728045612224,4.18439,2389.9,2389.2,4.18539]
[1728045612225,8.36878,2389.9,2389.3,4.1852]
[1728045612565,8.36878,2389.9,2389.4,4.25077178]
[1728045612566,4.18439,2389.9,2389.4,4.25077178]
[1728045612864,4.85465411,2390.3,2389.5,4.18495]
[1728045612865,4.18369,2390.3,2389.5,4.18495]
[1728045613069,4.18377,2390.2,2389.7,4.18461]
[1728045613238,4.18394,2390.1,2389.6,0.06536934]
[1728045613458,4.18394,2390.1,2389.5,8.36978]
[1728045613459,4.18394,2390.1,2389.8,0.06512013]
[1728045613675,0.8246,2390.4,2389.7,0.06524473]
[1728045613676,4.18436,2389.9,2389.7,0.06524473]
[1728045613982,4.18436,2389.9,2389.2,4.18546]
[1728045613983,4.18445,2389.8,2389.1,3.7871]
[1728045614285,4.18445,2389.8,2389.3,3.0]
[1728045614780,0.55,2390.0,2389.1,3.7871]
[1728045614941,4.84077478,2389.7,2389.3,3.0]
[1728045615555,0.65608478,2389.7,2389.3,3.0]
[1728045615760,0.65608478,2389.7,2389.3,7.1852]
[1728045615943,0.65608478,2389.7,2389.4,4.18506]
[1728045616369,0.65608478,2389.7,2389.5,4.18494]
[1728045616544,4.1842,2390.0,2389.5,4.18494]
[1728045616753,0.65601768,2390.1,2389.7,4.18451]
[1728045616955,0.65601768,2390.1,2389.7,0.8001]
[1728045618097,0.65601768,2390.1,2389.7,4.9847]
[1728045618261,4.83993768,2390.1,2389.7,0.8001]
[1728045618761,0.65601768,2390.1,2389.7,4.98472]
[1728045618956,0.65601768,2390.1,2389.8,4.18436]
[1728045619356,0.65601768,2390.1,2389.8,4.18435]
[1728045619675,4.18352,2390.4,2389.8,4.18435]
[1728045619857,5.60865903,2390.5,2390.0,4.18398]
[1728045620052,4.83915903,2390.5,2390.0,4.18398]
[1728045620753,4.18342,2390.4,2390.0,4.18398]
[1728045621001,4.18342,2390.4,2389.9,4.18427]
[1728045621154,4.1837,2390.3,2389.8,4.18431]
[1728045621353,4.1837,2390.3,2389.7,0.8001]
[1728045621354,4.18389,2390.2,2389.7,0.8001]
[1728045621583,4.18401,2390.1,2389.6,7.1848]
[1728045621786,4.18445,2389.8,2389.4,0.8248]
[1728045621996,4.18462,2389.7,2389.2,4.1855]
[1728045622363,0.8028,2390.3,2389.1,0.8248]
[1728045622560,0.8028,2390.3,2389.4,4.18504]
[1728045622561,4.18428,2389.9,2389.4,4.18504]
[1728045622901,4.1841,2390.0,2389.4,4.18504]
[1728045623259,4.1841,2390.0,2389.5,4.18495]
[1728045623460,4.18439,2389.9,2389.4,4.18504]
[1728045623660,4.18471,2389.7,2389.2,4.18538]
[1728045623894,4.18456,2389.8,2389.3,4.18516]
[1728045624665,4.18423,2390.0,2389.4,4.18501]
[1728045624871,4.18447,2389.8,2389.4,4.18501]
[1728045625066,4.18447,2389.8,2389.1,0.8248]
[1728045625067,4.1849,2389.6,2389.1,0.8248]
[1728045625387,4.1849,2389.6,2389.2,4.18549]
[1728045625997,4.18463,2389.7,2389.2,4.18549]
[1728045626588,5.00588,2389.8,2389.3,4.18521]
[1728045626993,4.18422,2390.0,2389.5,4.18493]
[1728045627161,4.18422,2390.0,2389.6,4.18476]
[1728045627363,4.98333,2390.1,2389.6,4.18476]
[1728045627654,4.98333,2390.1,2389.7,0.06491428]
[1728045627880,4.18413,2390.0,2389.7,0.06491428]
[1728045628302,4.18413,2390.0,2389.5,8.36981]
[1728045628303,4.18413,2390.0,2389.5,4.18488]
[1728045628771,4.18413,2390.0,2389.3,4.18521]
[1728045628772,4.18446,2389.8,2389.6,0.06503889]
[1728045629288,4.18413,2390.0,2389.4,0.03482097]
[1728045629595,4.18413,2390.0,2389.5,4.18488]
[1728045629780,4.18413,2390.0,2389.5,0.06516351]
[1728045629984,4.1843,2389.9,2389.5,0.06516351]
[1728045630186,4.98333,2390.1,2389.5,4.25003351]
[1728045630394,4.18358,2390.3,2389.8,4.18435]
[1728045630590,1.40811903,2390.5,2389.6,4.98884]
[1728045630591,4.18402,2390.1,2389.6,4.98884]
[1728045630780,4.18402,2390.1,2389.9,0.0646651]
[1728045630976,4.18402,2390.1,2389.6,4.98884]
[1728045631314,4.18368,2390.3,2390.0,0.06454052]
[1728045631464,4.18354,2390.4,2389.9,4.18427]
[1728045631665,0.65591903,2390.5,2390.2,4.18374]
[1728045631911,0.65591903,2390.5,2390.0,4.24865714]
[1728045632059,4.83919903,2390.5,2390.3,0.06428347]
[1728045632408,4.18359,2390.3,2389.6,4.98885]
[1728045632605,4.18427,2389.9,2389.5,4.18493]
[1728045632902,4.18427,2389.9,2389.3,0.8152]
[1728045632903,4.18446,2389.8,2389.3,0.8152]
[1728045633109,4.18446,2389.8,2389.3,5.0004]
[1728045633403,4.18446,2389.8,2389.3,0.8152]
[1728045633607,4.18418,2390.0,2389.3,5.00045]
[1728045633760,4.18418,2390.0,2389.5,4.18495]
[1728045634209,4.18418,2390.0,2389.3,5.00045]
[1728045634210,4.18441,2389.9,2389.4,4.18513]
[1728045634415,8.36839,2390.0,2389.5,4.18494]
[1728045634558,4.18437,2389.9,2389.4,4.18498]
[1728045634901,4.18418,2390.0,2389.4,4.18498]
[1728045635086,0.798,2389.3,2388.6,0.7724]
[1728045635287,0.55,2389.8,2388.6,0.7724]
[1728045635288,9.1679,2389.6,2389.1,4.18567]
[1728045635507,4.18497,2389.5,2389.1,4.18567]
[1728045635799,4.98293,2389.6,2388.9,4.18588]
[1728045635800,4.18515,2389.4,2388.9,4.18588]
[1728045636027,0.798,2389.6,2388.6,0.7724]
[1728045636334,4.18453,2389.8,2389.3,8.37041]
[1728045636628,4.18385,2390.2,2389.6,4.18467]
[1728045636629,4.18395,2390.1,2389.6,4.18467]
[1728045637151,4.99027,2390.2,2389.3,0.8042]
[1728045637152,0.8064,2390.2,2389.8,4.18442]
[1728045637350,4.18354,2390.4,2389.8,4.18437]
[1728045637620,4.18376,2390.2,2389.6,4.18469]
[1728045637841,4.18402,2390.1,2389.6,4.18469]
[1728045637985,4.18413,2390.0,2389.4,7.18502]
[1728045638186,4.18471,2389.7,2389.3,0.8042]
[1728045638485,0.8243,2389.8,2389.0,4.18576]
[1728045638486,4.18525,2389.4,2389.0,3.805]
[1728045639939,4.18463,2389.7,2389.0,3.805]
[1728045640154,4.18481,2389.6,2389.0,0.805]
[1728045640319,4.18529,2389.4,2388.8,8.37217]
[1728045640515,0.55,2389.7,2389.1,4.18567]
[1728045640516,4.18505,2389.5,2389.1,4.18567]
[1728045640715,4.18505,2389.5,2389.0,8.3715]
[1728045641241,0.8243,2389.8,2388.7,0.7911]
[1728045641446,5.00884,2389.8,2389.3,4.18523]
[1728045641761,5.00884,2389.8,2389.2,4.96408]
[1728045641762,4.18445,2389.8,2389.2,4.96408]
[1728045641922,4.1847,2389.7,2389.2,4.96408]
[1728045642634,4.18463,2389.7,2389.3,0.11188261]
[1728045643012,4.18445,2389.8,2389.4,4.18514]
[1728045643213,4.18471,2389.7,2389.4,0.11187514]
[1728045643479,4.18497,2389.5,2389.4,0.11187514]
[1728045643655,4.18497,2389.5,2388.9,4.94782]
[1728045643656,4.18497,2389.5,2388.9,3.7618]
[1728045643956,4.18518,2389.4,2389.0,4.18583]
[1728045644139,4.18497,2389.5,2389.1,0.10846622]
[1728045644316,4.18497,2389.5,2388.9,7.94774]
[1728045644823,4.18517,2389.4,2389.0,0.10859283]
[1728045645022,4.18497,2389.5,2389.0,4.29438283]
[1728045645228,4.18497,2389.5,2389.1,4.18563]
[1728045645710,4.95873,2389.6,2389.2,0.10843141]
[1728045646117,4.18525,2389.4,2389.2,0.10843141]
[1728045646325,4.18514,2389.5,2389.0,4.18583]
[1728045646655,0.7739,2389.6,2389.1,4.29418626]
[1728045646949,4.18473,2389.7,2389.3,4.18532]
[1728045647290,4.18473,2389.7,2389.4,0.10815892]
[1728045647755,5.53017,2389.5,2389.4,0.10815892]
[1728045648068,4.18483,2389.6,2389.1,4.18567]
[1728045648365,0.7952,2389.8,2389.1,4.18567]
[1728045648366,4.18463,2389.7,2389.2,4.29027848]
[1728045649235,4.18463,2389.7,2389.2,0.10487848]
[1728045649432,4.18506,2389.5,2389.2,0.10487848]
[1728045649834,4.18506,2389.5,2389.0,4.18582]
[1728045650040,4.18506,2389.5,2389.3,0.1047519]
[1728045650332,4.18551,2389.2,2388.9,0.8191]
[1728045650533,0.55,2389.7,2388.9,0.8191]
[1728045650735,4.18585,2389.0,2388.6,3.7993]
[1728045651639,4.18562,2389.2,2388.6,3.7993]
[1728045651965,4.18576,2389.1,2388.7,4.18635]
[1728045652179,4.18576,2389.1,2388.2,5.48119866]
[1728045652180,4.18622,2388.8,2388.3,4.95275]
[1728045652475,0.8332,2388.7,2388.0,0.7658]
[1728045652689,4.18747,2388.1,2387.5,5.06274866]
[1728045652830,4.1879,2387.9,2387.4,1.1889]
[1728045653441,4.18798,2387.8,2387.4,1.1889]
[1728045653638,4.18752,2388.1,2387.4,1.1889]
[1728045653886,4.18778,2387.9,2387.4,1.1889]
[1728045654146,8.37511,2388.1,2387.5,4.18844]
[1728045654368,0.8133,2388.2,2387.4,1.1889]
[1728045654369,4.18808,2387.8,2387.4,1.1889]
[1728045654540,2.63289264,2388.8,2387.4,1.1889]
[1728045654541,4.94013,2387.6,2387.4,0.4196]
[1728045654742,4.94013,2387.6,2386.5,0.87437866]
[1728045654743,0.55,2387.5,2386.5,4.98663]
[1728045654956,5.40465411,2387.4,2386.5,0.7965]
[1728045655268,0.55,2387.2,2386.5,0.7965]
[1728045655480,4.18965,2386.9,2386.3,4.19046]
[1728045655829,0.55,2387.2,2386.2,0.773]
[1728045656030,4.19019,2386.6,2386.2,0.773]
[1728045657482,4.19077,2386.2,2385.9,0.8074]
[1728045657643,4.19106,2386.1,2385.6,0.8074]
[1728045658029,4.19113,2386.0,2385.6,0.8074]
[1728045658473,4.19113,2386.0,2385.5,4.19197]
[1728045658889,4.85465411,2386.5,2385.7,4.19159]
[1728045658890,4.1905,2386.4,2385.7,4.19159]
[1728045659189,4.19068,2386.3,2385.7,4.19159]
[1728045659402,4.19109,2386.1,2385.5,4.19191]
[1728045659700,4.19121,2386.0,2385.5,4.19191]
[1728045660064,8.38217,2386.1,2385.5,4.19191]
[1728045660381,4.19069,2386.3,2385.5,4.19191]
[1728045660555,4.19069,2386.3,2385.6,4.19181]
[1728045660753,4.19069,2386.3,2385.6,4.1917]
[1728045661147,4.19094,2386.1,2385.6,4.1917]
[1728045661353,4.19094,2386.1,2385.4,4.19206]
[1728045661991,4.19117,2386.0,2385.4,4.19206]
[1728045662549,4.19094,2386.1,2385.4,4.19206]
[1728045662745,4.1913,2385.9,2385.4,4.19202]
[1728045662972,4.19113,2386.0,2385.3,0.7836]
[1728045663195,0.7965,2385.8,2385.1,3.0]
[1728045663404,0.7965,2385.8,2385.3,7.19222]
[1728045663605,4.19123,2386.0,2385.4,4.19216]
[1728045663906,4.98746,2386.1,2385.5,4.99968]
[1728045664054,0.7965,2386.1,2385.6,4.19181]
[1728045664249,4.1906,2386.3,2385.6,4.19172]
[1728045664454,4.19079,2386.2,2385.6,4.19172]
[1728045664653,4.19095,2386.1,2385.6,4.19172]
[1728045664860,4.19095,2386.1,2385.5,0.8078]
[1728045664861,4.19095,2386.1,2385.5,4.99968]
[1728045665291,4.19068,2386.3,2385.6,4.1918]
[1728045665509,4.19071,2386.3,2385.6,0.755]
[1728045665665,4.19059,2386.3,2385.6,4.94681]
[1728045665854,4.19059,2386.3,2385.7,4.19153]
[1728045666065,4.19128,2386.0,2385.6,0.755]
[1728045666375,4.19128,2386.0,2385.0,4.19282]
[1728045666376,4.19182,2385.6,2385.0,4.19282]
[1728045666704,4.19165,2385.7,2385.2,4.19251]
[1728045666906,8.38276,2385.9,2385.3,4.19224]
[1728045667259,4.19137,2385.9,2385.4,4.19214]
[1728045667463,0.796,2386.0,2385.2,4.19234]
[1728045667706,4.19174,2385.7,2385.2,4.19234]
[1728045667902,4.19174,2385.7,2385.1,3.0]
[1728045667903,0.55,2385.9,2385.1,3.0]
[1728045668076,4.1919,2385.6,2385.1,3.0]